[Event "US Masters 2022"]
[Site "Charlotte"]
[Date "2022.11.24"]
[Round "1.14"]
[White "Rutten, Alexander"]
[Black "Jacobson, Brandon"]
[Result "0-1"]
[ECO "B52"]
[WhiteElo "2190"]
[BlackElo "2551"]
[Annotator "TA"]
[PlyCount "52"]
[EventDate "2022.11.23"]
[EventType "swiss"]
[EventCountry "USA"]
[SourceTitle "playchess.com"]
[Source "ChessBase"]
[SourceQuality "1"]
[TimeControl "5400+30"]

{[%evp 9,52,8,29,21,27,25,18,0,0,-11,-16,-10,0,-58,-61,-95,-89,-99,-90,-125,-121,-165,-184,-168,-160,-178,-181,-196,-183,-186,-184,-198,-195,-203,-201,-189,-192,-192,-191,-185,-207,-6395,-862,-5022,-5018]} 1. e4 {[%emt 0:00:03]} c5 {[%emt 0:00:26]} 2. Nf3 {[%emt 0:00:13]} d6 {[%emt 0:00:19]} 3. Bb5+ {[%emt 0:00:11]} Bd7 {[%emt 0:00:07]} 4. c4 {[%emt 0:00:28]} Nf6 {[%emt 0:01:09]} 5. Nc3 {[%emt 0:00:12]} g6 {[%emt 0:00:50]} (5... a6 $5 {[%cal Ra6b5]} 6. Bxd7+ Nbxd7 $11) 6. O-O {[%emt 0:01:12] B52: Sicilian: Moscow Variation with 3...Bd7.} (6. Bxd7+ {simplifies} Nbxd7 7. O-O Bg7 8. d3) 6... Bg7 {[%emt 0:01:31]} 7. d4 {[%emt 0:00:21]} cxd4 {[%emt 0:00:06]} 8. Nxd4 {[%emt 0:00:06] The position is equal.} Nc6 {[%emt 0:01:16]} 9. Re1 {[%emt 0:15:20]} Nxd4 {[%emt 0:06:33]} 10. Qxd4 {[%emt 0:00:42]} O-O {[%emt 0:00:05] [#]} 11. Bxd7 $146 {[%emt 0:08:26]} (11. Qd3 $11) ({Predecessor:} 11. Qd3 Rc8 12. f3 a6 13. Bxd7 Nxd7 14. f4 Qa5 15. Re3 Qc5 16. Kh1 Qxc4 17. Qxc4 Rxc4 {0-1 (44) Sivarajasingam,S (1774)-Lauridsen,J (2247) Cardiff 2017}) 11... Nxd7 $15 {[%emt 0:01:07][%cal Bf6d7,Bd7c5,Bc5e4][%mdl 32]} 12. Qe3 {[%emt 0:02:35]} Rc8 {[%emt 0:04:29]} 13. Bd2 {[%emt 0:10:51]} Rxc4 {[%emt 0:01:09]} 14. Qxa7 {[%emt 0:02:23]} Nc5 {[%emt 0:00:22] [#] ...Bxc3 is the strong threat.} 15. Qa3 {[%emt 0:01:08]} Bxc3 {[%emt 0:05:20]} 16. bxc3 {[%emt 0:00:29]} Qd7 {[%emt 0:00:29] Hoping for ...Ra4.} ({And not} 16... Rxe4 17. Rxe4 Nxe4 18. Bh6 $17) 17. Bh6 {[%emt 0:05:47]} Rc8 {[%emt 0:00:19] Strongly threatening ...Ra4.} 18. Rad1 {[%emt 0:00:43]} Nxe4 {[%emt 0:00:58]} ({Weaker is} 18... Rxe4 19. Rxe4 Nxe4 20. c4) 19. Rd4 {[%emt 0:01:11] [#] aiming for Rxc4.} Rxc3 {[%emt 0:02:23]} 20. Qb4 {[%emt 0:00:50]} Nf6 {[%emt 0:00:36]} 21. Bg5 {[%emt 0:01:15]} Qf5 {[%emt 0:10:57]} 22. Bxf6 {[%emt 0:01:58]} Qxf6 $40 {[%emt 0:02:00][%mdl 128] Black has strong attack.} 23. Rf4 {[%emt 0:01:22]} Qg7 {[%emt 0:00:16]} ({Worse is} 23... Qg5 24. h4 Qd5 25. Rxe7 $17) 24. Qxb7 {[%emt 0:02:36]} Rc1 {[%emt 0:09:53][%cal Rc1e1]} 25. Qxe7 {[%emt 0:08:24]} (25. Rfe4) 25... Rxe1+ $19 {[%emt 0:00:52]} 26. Qxe1 {[%emt 0:00:05]} Qe5 {[%emt 0:01:59] White got outplayed after the opening.   Weighted Error Value: White=0.35/Black=0.01 (flawless)} 0-1

[Event "US Masters 2022"]
[Site "Charlotte"]
[Date "2022.11.24"]
[Round "1.15"]
[White "Mishra, Abhimanyu"]
[Black "Shivakumar, Shawnak"]
[Result "1-0"]
[ECO "C43"]
[WhiteElo "2549"]
[BlackElo "2189"]
[Annotator "TA"]
[PlyCount "73"]
[EventDate "2022.11.23"]
[EventType "swiss"]
[EventCountry "USA"]
[SourceTitle "playchess.com"]
[Source "ChessBase"]
[SourceQuality "1"]
[TimeControl "5400+30"]

{[%evp 13,73,16,31,0,0,0,35,31,28,21,61,57,56,54,45,62,57,0,29,17,15,0,60,66,286,247,245,234,235,156,167,149,126,22,22,20,22,0,0,0,0,0,31,29,36,30,34,29,42,24,25,27,27,29,105,96,168,83,75,73,2583,1537]} 1. e4 {[%emt 0:00:02]} e5 {[%emt 0:00:13]} 2. Nf3 {[%emt 0:00:07]} Nf6 {[%emt 0:00:13]} 3. d4 {[%emt 0:00:13]} Nxe4 {[%emt 0:00:08]} 4. Bd3 {[%emt 0:00:26]} d5 {[%emt 0:00:08]} 5. Nxe5 {[%emt 0:00:20]} Nd7 {[%emt 0:00:16]} 6. Nxd7 {[%emt 0:00:54]} Bxd7 {[%emt 0:00:07]} 7. O-O {[%emt 0:00:17]} Bd6 {[%emt 0:00:08]} 8. Nc3 $1 {[%emt 0:00:54][%mdl 4] is currently scoring better than 8.c4. C43: Petroff Defence: 3 d4.} Nxc3 {[%emt 0:00:10]} 9. bxc3 {[%emt 0:00:08]} h5 {[%emt 0:00:17] [#]} 10. Rb1 $146 {[%emt 0:02:49] White is slightly better.} ({Predecessor:} 10. Re1+ Kf8 11. Qf3 Bg4 12. Qe3 Qf6 13. Rb1 b6 14. c4 dxc4 15. Bxc4 Bd7 16. Bd2 {1-0 (57) Vasquez Schroder,R (2506)-Paravyan,D (2617) Chess.com INT 2022}) 10... b6 {[%emt 0:00:59]} (10... Qh4 11. g3 (11. Rxb7 $2 Qxh2#) 11... Qh3 12. Re1+ (12. Rxb7 Be6 $16) 12... Be6 13. Rxb7 $16) 11. c4 {[%emt 0:01:07]} dxc4 {[%emt 0:06:05]} 12. Bxc4 {[%emt 0:04:04]} Qf6 {[%emt 0:00:31]} 13. Re1+ {[%emt 0:02:14]} Kf8 {[%emt 0:00:33] [#]} 14. Bg5 $1 $36 {[%emt 0:13:05][%mdl 2048] Black is under pressure.} Qf5 {[%emt 0:24:17]} (14... Qxg5 $2 15. Qf3 Kg8 16. Qxf7+ (16. Qxa8+ Kh7 $16) 16... Kh7 17. Bd3+ (17. Qxd7 Rhf8 $18) 17... Kh6 18. Rb5 $3 $18 {[%mdl 512]} (18. Qxd7 g6 $18)) (14... Bxh2+ $2 15. Kxh2 Qd6+ 16. Kg1 $18) 15. Rb3 {[%emt 0:07:41]} f6 {[%emt 0:06:53]} (15... Qxg5 $2 16. Qf3 Kg8 17. Qxf7+ (17. Qxa8+ Kh7 $16) 17... Kh7 18. Qxd7 $18 (18. Bd3+ Kh6 $18)) (15... b5 $2 16. Rf3 Qg6 17. Bxf7 Qxf7 18. Rxf7+ Kxf7 19. Qf3+ Kg6 20. Bf4 $18) (15... Bc6 $5 {[%cal Rf5g5]} 16. Bc1 h4 $11) 16. h4 {[%emt 0:10:35]} Re8 $1 {[%emt 0:11:00]} (16... fxg5 $2 17. Rf3 g4 18. Rxf5+ Bxf5 19. Qd2 $18) 17. Rxe8+ {[%emt 0:06:54]} Kxe8 {[%emt 0:05:24]} ({Black should play} 17... Bxe8 $11 18. Rf3 Qe4) 18. Rf3 $1 $14 {[%emt 0:03:45]} Qa5 {[%emt 0:03:26]} (18... Qg6 $1 $14) 19. Qe2+ $1 $18 {[%emt 0:09:36]} (19. Bd2 Qa4 20. Qe2+ Kd8 $11) 19... Kd8 {[%emt 0:00:56][%cal Be8d8,Bd8c8,Bc8b8,Bb8c7,Bc7c6][%mdl 32] [#]} 20. Rxf6 {[%emt 0:00:34][%cal Rf6f8][%mdl 512]} Kc8 {[%emt 0:00:58] [#]} 21. Qe4 $1 {[%emt 0:03:44][%cal Re4a8]} Kb8 {[%emt 0:02:55] [#] Prevents Qa8+.} 22. Rxd6 {[%emt 0:03:03][%mdl 512]} cxd6 {[%emt 0:00:22]} 23. Bf4 {[%emt 0:01:35]} (23. Qe7 $16 Kc7 24. Bf7 (24. Qxg7 Re8 $16)) 23... Kc7 $11 {[%emt 0:02:25]} 24. Qe7 {[%emt 0:01:53][%csl LRd6,LRg7]} Qb4 {[%emt 0:00:38]} 25. Bf7 {[%emt 0:00:28][%cal Oc2c3] Against Re8. Hoping for c3! This pair of bishops is nice.} Qxd4 {[%emt 0:02:04]} 26. Be6 $1 {[%emt 0:05:13] The board is on fire.} Rd8 {[%emt 0:26:40]} (26... Qxf4 $2 27. Qxd7+ Kb8 28. Bd5 (28. Qxg7 Re8 $15) 28... Qc1+ 29. Kh2 Qf4+ 30. Kg1 Qc1+ 31. Kh2 Qf4+ 32. g3 Qxf2+ 33. Bg2 $18) 27. g3 {[%emt 0:04:01][%cal Oc2c3]} (27. Bg5 $5 Qa1+ $8 28. Kh2 Qe5+ 29. Kg1 Qe1+ 30. Kh2 Qe5+ 31. Kg1 $11) 27... Kc6 {[%emt 0:03:25][%cal Od7e6]} 28. Qxd8 {[%emt 0:00:35]} Bxe6 $14 {[%emt 0:00:03][%mdl 4096] Endgame KQB-KQB} 29. Qe8+ {[%emt 0:00:40]} Bd7 {[%emt 0:00:31]} 30. Qxh5 {[%emt 0:00:40]} Qa1+ {[%emt 0:00:23]} 31. Kh2 {[%emt 0:01:04]} Qxa2 {[%emt 0:00:08]} 32. Qg6 {[%emt 0:02:17][%csl LRd6,LRg7]} Qd5 {[%emt 0:02:54]} 33. Qxg7 {[%emt 0:01:30]} Qc5 {[%emt 0:00:47]} (33... Kc7 $11 {remains equal.}) 34. Be3 {[%emt 0:01:56] White is more active.} Qxc2 {[%emt 0:00:33]} (34... Qf5 $16 {was worth a try.}) 35. h5 {[%emt 0:01:35]} (35. g4 $18 {has better winning chances. And now h5 would win.} Qd1 36. Kg3 (36. Qc3+ Kb7 $15)) 35... Qf5 $16 {[%emt 0:00:38]} 36. h6 {[%emt 0:01:09]} Kb5 $2 {[%emt 0:00:19][%mdl 8192] [#]} (36... Be6 $16) 37. g4 $1 {[%emt 0:01:57] Weighted Error Value: White=0.15 (very precise) /Black=0.20 (precise)} ({Weaker is} 37. h7 Qh5+ 38. Kg1 Qd1+ 39. Kh2 Qh5+ 40. Kg1 Qd1+ 41. Kh2 Qh5+ $11) 1-0

[Event "US Masters 2022"]
[Site "Charlotte"]
[Date "2022.11.24"]
[Round "1.16"]
[White "Liu, Eric"]
[Black "Schitco, Ivan"]
[Result "0-1"]
[ECO "C50"]
[WhiteElo "2182"]
[BlackElo "2532"]
[Annotator "TA"]
[PlyCount "94"]
[EventDate "2022.11.23"]
[EventType "swiss"]
[EventCountry "USA"]
[SourceTitle "playchess.com"]
[Source "ChessBase"]
[SourceQuality "1"]
[TimeControl "5400+30"]

{[%evp 9,94,18,23,14,8,8,33,0,18,-8,-12,-12,10,0,20,4,22,37,41,10,22,-19,14,35,35,19,38,20,58,57,61,51,63,41,57,50,85,114,103,98,101,84,94,95,87,77,89,100,110,85,74,83,98,47,55,12,37,0,0,0,0,0,58,58,62,61,113,142,115,111,132,163,144,0,0,-8,-8,-72,-62,-54,-60,-652,0,-641,-612,-626,-501]} 1. e4 {[%emt 0:00:02]} e5 {[%emt 0:02:17]} 2. Nf3 {[%emt 0:00:13][%cal Bg1f3,Bf3d2,Bd2f1,Bf1e3][%mdl 32]} Nc6 {[%emt 0:00:07]} 3. Bc4 {[%emt 0:00:13]} d6 {[%emt 0:00:06]} 4. O-O {[%emt 0:05:39]} Be7 {[%emt 0:00:25]} 5. Re1 {[%emt 0:09:34] [#]} g5 $146 {[%emt 0:00:20]} ({Predecessor:} 5... Nf6 6. Bb3 O-O 7. c3 Kh8 8. h3 Ng8 9. d4 Bf6 10. Be3 Na5 11. Bc2 Nc4 12. Bc1 {1-0 (55) Vorobiov,E (2534)-Dvalishvili,P (2477) Vladimir 2004}) 6. d3 {[%emt 0:04:13][%cal Of3g5] White wants to play Nxg5! C50: Hungarian Defence and Giuoco Pianissimo.} g4 {[%emt 0:00:37]} 7. Nfd2 {[%emt 0:00:09]} h5 {[%emt 0:01:08]} 8. c3 {[%emt 0:03:39] White is slightly better.} Bg5 {[%emt 0:02:05]} 9. Nf1 {[%emt 0:04:02]} (9. d4 {looks sharper.} exd4 10. Bb5 d3 11. e5) 9... Bxc1 {[%emt 0:05:46]} 10. Qxc1 {[%emt 0:00:04]} Qf6 {[%emt 0:01:11]} 11. Nbd2 {[%emt 0:04:48][%cal Bb1d2,Bd2f1,Bf1g3][%mdl 32]} Nge7 {[%emt 0:02:22]} 12. Ne3 {[%emt 0:00:31][%cal Od3d4]} Qg7 {[%emt 0:03:49]} 13. b4 {[%emt 0:17:10]} Bd7 {[%emt 0:03:49]} 14. Ndf1 {[%emt 0:09:53]} h4 {[%emt 0:02:02]} 15. Bb3 {[%emt 0:05:42]} g3 {[%emt 0:21:48]} (15... O-O-O {simplifies} 16. Qa3 b6 17. Qa6+ Kb8) 16. fxg3 {[%emt 0:05:03]} hxg3 {[%emt 0:01:09]} 17. Nxg3 {[%emt 0:00:16]} Qh7 {[%emt 0:01:23]} 18. Nef1 {[%emt 0:02:01][%cal Od3d4]} Ng6 {[%emt 0:02:34] Against d4} 19. Qe3 {[%emt 0:01:52]} Nce7 {[%emt 0:03:37]} 20. d4 {[%emt 0:03:55]} f6 {[%emt 0:01:45]} 21. Rad1 {[%emt 0:05:27]} Nf4 {[%emt 0:02:16]} 22. c4 {[%emt 0:02:35]} Ne6 {[%emt 0:05:32]} 23. c5 {[%emt 0:04:46] And now cxd6 would win.} Nxd4 {[%emt 0:07:47]} 24. cxd6 {[%emt 0:00:36]} cxd6 {[%emt 0:00:03]} 25. Rxd4 $1 {[%emt 0:00:42]} exd4 {[%emt 0:00:01]} 26. Qxd4 {[%emt 0:00:08] Nf5 is the strong threat.} Nc6 {[%emt 0:07:26]} 27. Qxf6 {[%emt 0:01:48]} Rf8 {[%emt 0:00:04] Prevents e5.} 28. Qxd6 {[%emt 0:00:22]} O-O-O {[%emt 0:00:31]} 29. b5 {[%emt 0:04:53]} (29. Rc1 {seems wilder.} Bg4 30. Qc5 Kb8 31. Ne3) 29... Qe7 {[%emt 0:01:31]} 30. Qxe7 {[%emt 0:02:00]} Nxe7 {[%emt 0:00:01][%cal Bc6e7,Be7g6,Bg6f4][%mdl 32]} 31. Rc1+ {[%emt 0:00:21]} ({Better is} 31. a4 $16) 31... Kb8 $14 {[%emt 0:00:10]} 32. Rc5 {[%emt 0:01:33]} Ng6 {[%emt 0:03:30]} 33. a4 {[%emt 0:01:31]} Bc8 {[%emt 0:01:45]} 34. Bd5 {[%emt 0:00:37]} Nf4 {[%emt 0:00:07]} 35. Ne3 {[%emt 0:00:13]} Be6 {[%emt 0:00:36]} (35... Nxd5 $11 36. Rxd5 (36. Nxd5 Be6 $11) 36... Rxd5 37. Nxd5 Be6) 36. Bxe6 {[%emt 0:00:48]} Nxe6 {[%emt 0:00:07]} 37. Re5 {[%emt 0:00:34]} Rd3 {[%emt 0:03:26]} (37... Nf4 $14) 38. Ngf5 $16 {[%emt 0:00:37]} Nf4 {[%emt 0:00:37]} 39. g3 $1 {[%emt 0:00:33]} Rg8 {[%emt 0:02:52] [#]} 40. Kf1 $1 {[%emt 0:00:18]} Nh3 {[%emt 0:00:41]} 41. a5 {[%emt 0:00:49]} (41. Kg2 $16 Nf4+ 42. Kf1) 41... Rd2 $11 {[%emt 0:00:35]} 42. b6 {[%emt 0:00:39]} axb6 {[%emt 0:00:05] Strongly threatening ...Rc8.} 43. axb6 {[%emt 0:00:01] [#]} (43. Nc4 $1 $11 {keeps the balance.} Rf2+ 44. Ke1 bxa5 45. Nfd6 Rxh2 46. Re7 Rh1+ 47. Kd2 Rh2+ 48. Ke1 Rh1+ 49. Kd2 Rh2+ 50. Ke1) 43... Rc8 $1 $17 {[%emt 0:02:16] ( -> ...Rc1+)} 44. Ke1 {[%emt 0:00:15]} Rxh2 {[%emt 0:01:14] aiming for ...Rc1+.} 45. Nd6 $2 {[%emt 0:00:50][%mdl 8192]} (45. Nd1 $15) 45... Rc1+ $19 {[%emt 0:00:57]} 46. Nd1 {[%emt 0:00:02] [#]} Rxd1+ $1 {[%emt 0:00:14][%mdl 576] Deflection} 47. Kxd1 {[%emt 0:00:17][%cal Re5e8]} Nf2+ {[%emt 0:00:05] Weighted Error Value: White=0.28 (precise) /Black=0.12 (very precise)} 0-1

[Event "US Masters 2022"]
[Site "Charlotte"]
[Date "2022.11.24"]
[Round "1.17"]
[White "Stremavicius, Titas"]
[Black "Amburgy, Ryan"]
[Result "1-0"]
[ECO "A28"]
[WhiteElo "2527"]
[BlackElo "2175"]
[Annotator "TA"]
[PlyCount "95"]
[EventDate "2022.11.23"]
[EventType "swiss"]
[EventCountry "USA"]
[SourceTitle "playchess.com"]
[Source "ChessBase"]
[SourceQuality "1"]
[TimeControl "5400+30"]

{[%evp 9,94,0,10,9,14,8,0,0,0,0,0,-1,7,0,30,3,16,22,113,116,107,123,117,116,112,81,96,93,102,58,97,97,97,89,114,77,110,117,95,31,94,18,21,37,41,24,25,25,75,75,75,84,110,110,144,154,354,355,936,914,918,875,1279,1264,1224,1115,12825,12827,12827,12827,1933,12644,11887,1629,2488,2492,12820,1951,29981,29982,29982,29980,29983,12843,29984,29985,29999]} 1. c4 {[%emt 0:00:24]} e5 {[%emt 0:00:10]} 2. Nc3 {[%emt 0:00:09]} Nf6 {[%emt 0:00:07]} 3. Nf3 {[%emt 0:00:09]} Nc6 {[%emt 0:00:08]} 4. e4 {[%emt 0:00:26]} Bb4 {[%emt 0:00:09]} 5. d3 {[%emt 0:00:06]} d6 {[%emt 0:00:06]} 6. a3 {[%emt 0:00:06] A28: English Opening: Four Knights Variation.} Bc5 {[%emt 0:00:04]} 7. b4 {[%emt 0:00:07]} Bb6 {[%emt 0:00:10]} 8. Na4 {[%emt 0:00:05] The position is equal.} Bd4 {[%emt 0:00:17] 8...Bd4 is better than 8...Bg4.} 9. Rb1 {[%emt 0:00:07]} a6 {[%emt 0:06:08]} 10. Be2 {[%emt 0:02:25] [#]} Be6 $146 {[%emt 0:03:18]} ({Predecessor:} 10... b5 11. Nxd4 Nxd4 12. Nc3 O-O 13. O-O c6 14. Be3 Be6 15. Re1 Nxe2+ 16. Qxe2 Nd7 {0-1 (53) Nepomniachtchi,I (2773)-Ding,L (2801) Kolkata 2019}) 11. Qc2 {[%emt 0:08:49]} h6 {[%emt 0:07:02]} 12. h3 {[%emt 0:06:04]} (12. b5 $5 {[%cal Rb5c6]} Ne7 13. Nxd4 exd4 14. O-O $11) 12... Qd7 {[%emt 0:10:42]} 13. Nc3 {[%emt 0:02:41]} Ne7 {[%emt 0:06:35]} (13... O-O $11) 14. Nxd4 $16 {[%emt 0:01:11]} exd4 {[%emt 0:00:02]} 15. Nd5 {[%emt 0:00:23]} Bxd5 {[%emt 0:00:17]} 16. cxd5 {[%emt 0:00:21]} c6 {[%emt 0:05:33]} 17. Bb2 {[%emt 0:08:15]} cxd5 {[%emt 0:01:20]} 18. Bxd4 {[%emt 0:00:15]} dxe4 {[%emt 0:06:16]} 19. Bxf6 {[%emt 0:01:13]} gxf6 {[%emt 0:00:02]} 20. dxe4 {[%emt 0:00:18]} Rg8 {[%emt 0:07:22]} 21. Bg4 {[%emt 0:03:00]} Qc6 {[%emt 0:04:27]} 22. Qd3 {[%emt 0:00:15] 0-0 is the strong threat.} Ng6 {[%emt 0:00:55]} 23. O-O $1 {[%emt 0:08:38] Hoping for Qe3. White is more active.} Ne5 {[%emt 0:00:15][%csl LRd3,LRg4]} 24. Qe2 {[%emt 0:02:37]} (24. Qd4 $16) 24... Qb5 {[%emt 0:03:34]} ({Black should try} 24... Nxg4 $14 25. hxg4 Qb5) 25. Qd1 {[%emt 0:07:11]} (25. Bh5 $16) 25... Nxg4 $11 {[%emt 0:03:15]} 26. hxg4 {[%emt 0:00:03]} Ke7 {[%emt 0:00:19]} 27. Rc1 {[%emt 0:05:50] Black must now prevent Rc7+.} Rac8 {[%emt 0:00:52] Inhibits Rc7+.} 28. Qd4 $36 {[%emt 0:00:32][%mdl 2048] White fights for an advantage.} Rc6 {[%emt 0:05:07]} (28... Qd7 $11 {remains equal.}) 29. Rxc6 $1 $16 {[%emt 0:01:43]} Qxc6 {[%emt 0:00:45][%mdl 4096] Endgame KQR-KQR} 30. f3 {[%emt 0:01:10]} Rg5 {[%emt 0:00:34]} 31. Qe3 $1 {[%emt 0:00:55]} h5 {[%emt 0:05:17]} 32. Rc1 {[%emt 0:00:09] Inhibits Qc2.} Qd7 {[%emt 0:00:06] Loses the game.} (32... Qb5 $16 {keeps fighting.}) 33. Qa7 $18 {[%emt 0:01:44]} hxg4 $2 {[%emt 0:07:16] [#]} (33... Rg8 34. gxh5 Rc8) 34. Qb8 $1 {[%emt 0:01:18]} gxf3 {[%emt 0:00:04] [#]} 35. Rc7 $1 {[%emt 0:00:12]} b5 {[%emt 0:00:03]} 36. Rxd7+ {[%emt 0:00:46]} Kxd7 {[%emt 0:00:01] KQ-KR} 37. g3 {[%emt 0:01:14]} Rxg3+ {[%emt 0:00:41]} 38. Kf2 {[%emt 0:00:02]} Rg5 {[%emt 0:00:06]} 39. Qb7+ {[%emt 0:00:55]} Ke6 {[%emt 0:00:09]} 40. Qxa6 {[%emt 0:00:07]} (40. Kxf3 $142 Re5 41. Qc8+ Ke7 42. Kf4) 40... Re5 {[%emt 0:00:29]} 41. Qc8+ {[%emt 0:00:18]} (41. Qc6 $142 f5 42. exf5+ Kxf5 43. Qxd6) 41... Ke7 {[%emt 0:00:03]} 42. Kxf3 {[%emt 0:00:09]} Rg5 {[%emt 0:00:45]} 43. Qc7+ {[%emt 0:00:06]} Ke6 {[%emt 0:00:16]} 44. Qd8 {[%emt 0:00:07][%cal Rd8e8]} d5 {[%emt 0:00:02]} 45. Qb6+ {[%emt 0:00:42]} Ke7 {[%emt 0:00:41]} 46. Qc7+ {[%emt 0:00:07]} (46. Qxb5 $2 {perishes.} dxe4+ 47. Kf4 Rxb5 $19) (46. Qc5+ $142 Kd8 47. Qf8+ Kc7 48. Qxf7+ Kb8 49. exd5 Rg1 50. Qf8+ (50. Qxf6 $2 {is the wrong capture.} Rf1+ 51. Ke4 Rxf6 $19) 50... Kb7 51. Qe7+ (51. Qxf6 Rf1+ 52. Kg4 Rxf6 53. Kg5 Rf2 54. d6 Kc6 55. d7 Kxd7 56. Kg4 Kd6 57. Kg3 Rf6 58. Kg4 Ke5 59. Kg3 Ke4 60. Kg4 Rg6+ 61. Kh5 Kf5 62. Kh4 Kf4 63. Kh3 Rg8 64. Kh2 Kf3 65. a4 Rh8+ 66. Kg1 bxa4 67. b5 a3 68. b6 a2 69. Kf1 a1=Q#) 51... Kb8 52. Qd6+ (52. Qxf6 Rf1+ 53. Ke4 Rxf6 $19) 52... Kc8 53. Qc5+ (53. Qxf6 Rf1+ 54. Ke4 Rxf6 55. Ke5 Ra6 56. Kd4 Kd7 57. Kc5 Rxa3 58. Kxb5 Rc3 59. Ka4 Kd6 60. b5 Kxd5 61. Kb4 Rc1 62. b6 Kc6 63. b7 Kxb7 64. Kb3 Kb6 65. Ka2 Kb5 66. Kb2 Rc4 67. Kb3 Rc6 68. Ka2 Ka4 69. Kb2 Kb4 70. Ka1 Rc2 71. Kb1 Kb3 72. Ka1 Rc1#) 53... Kd7 54. Qxg1) 46... Ke6 {[%emt 0:00:19]} 47. Qc6+ {[%emt 0:00:07]} Ke5 {[%emt 0:00:02]} 48. Qxd5# {[%emt 0:00:06] Weighted Error Value: White=0.14 (very precise) /Black=0.41} 1-0